bitfinex/quotes_SOLUSD_20250818
["timestamp","ask_amount","ask_price","bid_price","bid_amount"]
[1755487108017,0.06,184.0,183.99,15.46381943]
[1755487109188,0.71,184.0,183.99,15.46381943]
[1755487109421,0.06,184.0,183.99,15.46381943]
[1755487109875,0.71,184.0,183.99,15.46381943]
[1755487110077,0.71,184.0,183.98,15.46381943]
[1755487110293,0.65,183.99,183.98,15.46381943]
[1755487110779,0.65,183.99,183.95,15.46381943]
[1755487110988,39.64,183.98,183.93,15.46381943]
[1755487111283,5.43596434,183.96,183.91,15.49381943]
[1755487111615,0.65,183.95,183.91,15.49381943]
[1755487111778,39.64,183.94,183.91,15.49381943]
[1755487111976,0.65,183.93,183.91,15.49381943]
[1755487112487,0.65,183.92,183.91,0.03]
[1755487113207,7.65029169,183.93,183.91,15.49381943]
[1755487113404,4.273666,183.93,183.91,15.49381943]
[1755487113603,0.65,183.92,183.91,0.03]
[1755487114993,3.623666,183.93,183.91,15.49381943]
[1755487115196,3.623666,183.93,183.92,15.46381943]
[1755487115595,4.273666,183.93,183.92,15.46381943]
[1755487116004,3.623666,183.93,183.92,15.46381943]
[1755487116313,39.62,183.96,183.92,15.46381943]
[1755487116616,3.62171349,183.95,183.91,5.46733187]
[1755487117188,3.62171349,183.95,183.91,15.13621557]
[1755487117598,3.62171349,183.95,183.94,15.46381943]
[1755487117805,4.27171349,183.95,183.94,15.46381943]
[1755487118615,3.62171349,183.95,183.94,15.46381943]
[1755487119310,8.2966528,183.95,183.93,15.46381943]
[1755487119616,0.65,183.94,183.93,15.46381943]
[1755487120093,4.67605807,183.94,183.93,15.46381943]
[1755487120882,4.02605807,183.94,183.93,15.46381943]
[1755487121082,0.06,184.0,183.94,15.10621557]
[1755487121298,0.06,184.0,183.99,15.46381943]
[1755487121717,0.71,184.0,183.99,15.46381943]
[1755487121938,4.3381714,184.0,183.99,15.46381943]
[1755487122130,13.80330619,184.0,183.92,0.27]
[1755487122328,8.30845753,183.99,183.96,15.46381943]
[1755487122502,43.2481714,183.98,183.95,15.46381943]
[1755487122702,8.31013049,183.97,183.95,15.46381943]
[1755487122902,3.6281714,183.96,183.95,15.46381943]
[1755487123137,0.65,183.96,183.95,15.46381943]
[1755487123446,4.2781714,183.96,183.94,15.46381943]
[1755487123603,4.2781714,183.95,183.91,0.03]
[1755487123804,43.2481714,183.97,183.94,15.46381943]
[1755487124030,7.66319495,183.96,183.92,0.27]
[1755487124330,39.62,183.97,183.91,0.03]
[1755487124331,3.6281714,183.95,183.91,0.03]
[1755487124508,40.27,183.97,183.92,0.27]
[1755487124509,3.6281714,183.96,183.92,0.27]
[1755487124909,3.6281714,183.96,183.91,15.13621557]
[1755487125134,3.6281714,183.96,183.95,15.46381943]
[1755487126032,8.3162882,183.96,183.91,0.03]
[1755487126202,8.37644432,183.95,183.93,15.46381943]
[1755487126398,3.6281714,183.94,183.91,0.03]
[1755487126619,3.6281714,183.94,183.93,15.46381943]
[1755487127042,7.66760245,183.94,183.93,15.46381943]
[1755487127205,8.37760245,183.94,183.93,15.46381943]
[1755487128438,13.81415784,183.94,183.91,0.03]
[1755487128623,47.99760245,183.93,183.91,15.49381943]
[1755487128817,3.6281714,183.92,183.91,15.49381943]
[1755487129025,7.67256234,183.92,183.91,15.49381943]
[1755487129222,8.38256234,183.92,183.91,15.49381943]
[1755487129529,7.67256234,183.92,183.91,15.49381943]
[1755487130613,8.38256234,183.92,183.91,15.49381943]
[1755487131028,8.38256234,183.92,183.91,0.03]
[1755487131738,8.3840505,183.92,183.91,0.03]
[1755487134229,43.2281714,183.92,183.91,15.49381943]
[1755487134734,43.9381714,183.92,183.91,15.49381943]
[1755487135108,43.2281714,183.92,183.91,15.49381943]
[1755487135433,39.6,183.94,183.91,15.49381943]
[1755487135615,3.6326247,183.93,183.91,0.03]
[1755487136207,4.3426247,183.93,183.91,0.03]
[1755487136602,8.38204804,183.92,183.91,0.03]
[1755487136837,8.38204804,183.92,183.91,15.49381943]
[1755487136838,4.74942334,183.92,183.91,15.49381943]
[1755487137137,8.38204804,183.92,183.91,15.49381943]
[1755487138032,8.38204804,183.92,183.91,0.03]
[1755487138235,13.81919462,183.92,183.91,0.03]
[1755487140337,8.38204804,183.92,183.91,0.03]
[1755487140614,7.67204804,183.92,183.91,15.49381943]
[1755487140839,47.9837836,183.92,183.91,15.49381943]
[1755487141244,8.3837836,183.92,183.91,15.49381943]
[1755487141423,44.3511589,183.92,183.91,15.49381943]
[1755487141745,47.9837836,183.92,183.91,15.49381943]
[1755487142147,47.9837836,183.92,183.91,0.03]
[1755487142315,53.42093018,183.92,183.91,0.03]
[1755487142636,47.9837836,183.92,183.91,0.03]
[1755487143617,47.9837836,183.92,183.91,15.49381943]
[1755487143937,7.6737836,183.92,183.91,15.49381943]
[1755487144141,43.6411589,183.92,183.91,15.49381943]
[1755487144352,47.27916712,183.92,183.91,0.03]
[1755487144557,43.2326247,183.92,183.91,15.49381943]
[1755487145220,39.6,183.92,183.91,15.49381943]
[1755487145644,26.0,183.95,183.91,15.49381943]
[1755487145849,0.06,183.97,183.94,15.46381943]
[1755487146036,3.70157826,183.97,183.96,15.46381943]
[1755487146237,0.06,183.97,183.96,15.46381943]
[1755487146446,0.06,183.97,183.95,15.46381943]
[1755487146447,8.46174027,183.97,183.95,15.46381943]
[1755487146617,48.00174027,183.96,183.94,15.46381943]
[1755487146814,8.40174027,183.95,183.94,15.46381943]
[1755487147044,8.40174027,183.95,183.93,15.46381943]
[1755487147353,8.40174027,183.95,183.91,0.03]
[1755487147354,48.00174027,183.94,183.92,15.46381943]
[1755487147547,8.40174027,183.93,183.92,15.46381943]
[1755487147854,7.69174027,183.93,183.92,15.46381943]
[1755487148964,3.64157826,183.93,183.92,36.27718158]
[1755487149255,0.06,183.97,183.93,15.10621557]
[1755487149256,39.58,183.96,183.93,15.10621557]
[1755487149456,3.64436906,183.95,183.92,5.70714658]
[1755487149633,3.64436906,183.95,183.91,0.03]
[1755487149827,8.40053506,183.94,183.91,0.03]
[1755487150017,47.27053506,183.93,183.91,0.03]
[1755487150217,3.64436906,183.92,183.91,0.03]
[1755487150448,39.58,183.93,183.91,0.03]
[1755487150846,39.58,183.93,183.92,15.46381943]
[1755487151055,43.21944898,183.93,183.92,15.46381943]
[1755487151220,47.26331038,183.93,183.92,15.46381943]
[1755487151416,47.26331038,183.93,183.91,0.03]
[1755487151637,3.63944898,183.92,183.91,0.03]
[1755487151853,3.63944898,183.92,183.91,15.49381943]
[1755487153047,3.63944898,183.92,183.91,0.03]
[1755487153227,3.63944898,183.92,183.91,15.49381943]
[1755487153627,3.63944898,183.92,183.91,0.03]
[1755487153842,7.68397348,183.92,183.91,15.49381943]
[1755487154247,7.68581453,183.92,183.91,20.93126165]
[1755487154845,7.68581453,183.92,183.91,15.49381943]
[1755487155266,8.39581453,183.92,183.91,15.49381943]
[1755487155763,13.83296111,183.92,183.91,0.03]
[1755487158065,13.83319285,183.92,183.91,0.03]
[1755487158663,9.78659556,183.92,183.91,0.03]
[1755487158969,13.8348266,183.92,183.91,0.03]
[1755487160346,18.29930818,183.92,183.91,0.03]
[1755487161145,33.76312761,183.92,183.91,0.03]
[1755487161345,29.29608115,183.92,183.91,0.03]
[1755487161548,15.85281347,183.92,183.91,0.03]
[1755487161767,31.3166329,183.92,183.91,0.03]
[1755487162469,31.3166329,183.92,183.91,1e-08]
[1755487162642,26.0,183.9,183.89,1e-08]
[1755487162842,88.70893457,183.9,183.89,1e-08]
[1755487163071,73.96511514,183.9,183.89,1e-08]
[1755487163271,38.94857322,183.9,183.89,1e-08]
[1755487163472,44.38631112,183.9,183.89,1e-08]
[1755487163774,39.84285304,183.9,183.89,1e-08]
[1755487164144,79.40285304,183.9,183.89,1e-08]
[1755487164346,44.38631112,183.9,183.89,1e-08]
[1755487164551,79.40285304,183.9,183.89,1e-08]
[1755487164858,73.96511514,183.9,183.89,1e-08]
[1755487165063,39.84285304,183.9,183.89,1e-08]
[1755487165374,99.41013055,183.9,183.89,1e-08]
[1755487165878,144.53694629,183.9,183.76,5.44186114]
[1755487166053,26.0,183.82,183.79,15.46381943]
[1755487166252,40.28,183.81,183.74,15.37621557]
[1755487166456,40.28,183.81,183.79,15.46381943]
[1755487166678,40.28,183.81,183.78,15.46381943]
[1755487167064,16.355458,183.83,183.8,45.03403065]
[1755487167065,26.0,183.83,183.8,45.03403065]
[1755487167263,16.355459,183.84,183.82,15.46381943]
[1755487167495,43.193046,183.83,183.8,29.57021122]
[1755487167678,10.70190614,183.88,183.81,15.10621557]
[1755487167873,24.02258699,183.87,183.81,15.10621557]
[1755487168076,39.56,183.86,183.81,15.10621557]
[1755487168290,5.26368067,183.91,183.82,0.27]
[1755487168455,63.58353301,183.9,183.82,0.27]
[1755487168655,3.63562301,183.89,183.82,0.27]
[1755487168857,3.63562301,183.92,183.84,26.0]
[1755487169077,16.347438,183.93,183.85,15.37621557]
[1755487169275,39.56,183.94,183.86,0.27]
[1755487169476,7.67719289,183.93,183.86,5.70887956]
[1755487169789,7.67694797,183.92,183.84,0.27]
[1755487170080,47.23696678,183.91,183.83,15.10621557]
[1755487170294,47.23696678,183.91,183.84,0.27]
[1755487170295,7.67696678,183.9,183.84,0.27]
[1755487170454,3.63712844,183.9,183.84,0.27]
[1755487170783,4.54368067,183.96,183.87,15.10621557]
[1755487171091,47.23584118,183.95,183.88,0.27]
[1755487171324,3.63629628,183.94,183.88,0.27]
[1755487171510,3.63629628,183.93,183.87,15.10621557]
[1755487171681,3.63629628,183.92,183.87,15.10621557]
[1755487172026,3.63629628,183.91,183.89,15.10621557]
[1755487172188,39.56,183.93,183.9,0.27]
[1755487172506,39.56,183.93,183.91,0.27]
[1755487172700,39.56,183.93,183.92,15.46381943]
[1755487172876,43.19758067,183.93,183.92,15.46381943]
[1755487173082,43.19758067,183.93,183.92,15.10621557]
[1755487173280,43.19758067,183.93,183.92,15.46381943]
[1755487173507,47.95788296,183.93,183.92,15.46381943]
[1755487173882,47.23788296,183.93,183.92,15.46381943]
[1755487174298,53.39473393,183.93,183.92,15.46381943]
[1755487174709,3.63758067,183.93,183.92,15.46381943]
[1755487175048,43.19758067,183.94,183.92,20.90095164]
[1755487175217,3.63758067,183.93,183.92,20.54334778]
[1755487175413,3.63758067,183.93,183.92,36.00716721]
[1755487175640,3.63758067,183.93,183.89,5.437764]
[1755487175940,39.56,183.94,183.92,15.46381943]
[1755487176156,39.56,183.94,183.93,15.46381943]
[1755487176440,47.95550206,183.94,183.93,15.46381943]
[1755487176842,53.39183621,183.94,183.88,0.03]
[1755487177137,4.54368067,183.92,183.89,15.46381943]
[1755487177324,47.95528082,183.91,183.88,15.49381943]
[1755487177504,8.39528082,183.9,183.88,15.49381943]
[1755487177705,3.63647515,183.89,183.88,0.03]
[1755487177933,3.63647515,183.9,183.88,15.49381943]
[1755487178138,39.56,183.92,183.88,0.03]
[1755487178322,3.632346,183.91,183.89,0.27]
[1755487178519,3.632346,183.91,183.89,15.10621557]
[1755487179136,3.632346,183.9,183.88,0.03]
[1755487179337,3.632346,183.91,183.89,9.55473852]
[1755487179645,3.632346,183.91,183.89,0.27]
[1755487180422,0.06,183.95,183.9,9.82473852]
[1755487180622,0.06,183.95,183.94,9.55473852]
[1755487180838,43.25299117,183.95,183.94,9.55473852]
[1755487181362,47.2881908,183.95,183.94,9.55473852]
[1755487182463,0.06,183.97,183.94,24.81581944]
[1755487182633,0.06,184.0,183.97,41.10621557]
[1755487182841,0.06,184.01,184.0,15.10621557]
[1755487183020,0.06,184.04,184.0,24.93095409]
[1755487183223,0.06,184.07,184.03,24.66095409]
[1755487183439,0.06,184.07,184.05,24.66095409]
[1755487183722,0.06,184.07,184.06,15.10621557]
[1755487183925,0.06,184.07,184.06,9.55473852]
[1755487184138,0.06,184.07,184.01,26.0]
[1755487184139,0.78,184.07,184.01,26.0]
[1755487184339,0.06,184.07,184.06,9.55473852]
[1755487184932,0.06,184.07,184.02,15.10621557]
[1755487185252,0.78,184.07,184.06,9.55473852]
[1755487185450,0.06,184.07,184.05,9.55473852]
[1755487185747,0.06,184.07,184.04,9.55473852]
[1755487185929,0.78,184.07,184.05,9.55473852]
[1755487186116,0.78,184.07,184.03,9.55473852]
[1755487186318,0.78,184.07,184.02,15.45491634]
[1755487186664,0.06,184.04,184.0,0.27]
[1755487186814,0.06,184.04,184.03,30.56113191]
[1755487187154,0.06,184.04,184.03,30.83113191]
[1755487187326,0.06,184.04,184.03,30.56113191]
[1755487187919,0.06,184.04,184.03,36.26502855]
[1755487188332,0.06,184.07,184.03,36.26502855]
[1755487188618,0.06,184.07,184.06,15.45491634]
[1755487188858,0.06,184.07,184.06,30.56113191]
[1755487189231,0.06,184.07,184.06,30.83113191]
[1755487189857,0.06,184.11,184.1,46.53804609]
[1755487190079,0.1,184.14,184.11,15.10621557]
[1755487190248,0.1,184.14,184.13,15.45491634]
[1755487190961,0.1,184.14,184.13,30.56113191]
[1755487191172,0.1,184.14,184.13,15.45491634]
[1755487192874,0.1,184.14,184.13,15.72491634]
[1755487193048,0.1,184.14,184.13,15.45491634]
[1755487193374,0.06,184.15,184.14,15.10621557]
[1755487193562,0.06,184.17,184.15,15.45491634]
[1755487193747,0.06,184.17,184.16,30.56113191]
[1755487193949,0.06,184.17,184.16,36.20119272]
[1755487195070,0.06,184.17,184.12,15.10621557]
[1755487195286,0.06,184.17,184.16,15.45491634]
[1755487195973,0.06,184.17,184.16,30.56113191]
[1755487197282,0.06,184.17,184.16,15.10621557]
[1755487197643,0.06,184.17,184.16,30.56113191]
[1755487198259,0.73,184.17,184.12,26.0]
[1755487198564,0.73,184.17,184.16,15.45491634]
[1755487198778,0.06,184.17,184.16,15.45491634]
[1755487199349,0.73,184.17,184.16,15.45491634]
[1755487200278,6.15976597,184.17,184.1,84.83177641]
[1755487200474,6.15976597,184.17,184.11,15.10621557]
[1755487200475,0.67,184.16,184.11,15.10621557]
[1755487200677,5.48976597,184.17,184.13,15.45491634]
[1755487200678,0.67,184.15,184.13,15.45491634]
[1755487200854,0.67,184.15,184.09,15.10621557]
[1755487201052,0.67,184.15,184.14,15.45491634]
[1755487201265,0.67,184.15,184.07,5.4326907]
[1755487201481,0.67,184.15,184.12,15.45491634]
[1755487202185,0.67,184.15,184.14,15.45491634]
[1755487202980,0.06,184.17,184.14,15.45491634]
[1755487203187,0.06,184.17,184.16,15.45491634]
[1755487205960,0.06,184.17,184.16,20.88497715]
[1755487207093,0.06,184.17,184.16,35.99119272]
[1755487207255,0.06,184.19,184.16,35.99119272]
[1755487207256,0.06,184.19,184.17,15.10621557]
[1755487207452,0.06,184.19,184.18,15.45491634]
[1755487207658,0.06,184.21,184.19,15.10621557]
[1755487207975,0.06,184.21,184.2,15.45491634]
[1755487208812,0.06,184.21,184.2,30.77113191]
[1755487208995,0.06,184.21,184.2,36.20001356]
[1755487209754,0.73,184.28,184.21,15.10621557]
[1755487209951,0.73,184.28,184.27,15.45491634]
[1755487210155,26.0,184.25,184.1,0.03]
[1755487210357,4.24133175,184.24,184.19,15.45491634]
[1755487210557,40.65,184.23,184.21,15.45491634]
[1755487211081,40.65,184.23,184.15,0.68]
[1755487211082,0.67,184.22,184.19,15.45491634]
[1755487211320,39.98,184.23,184.19,15.45491634]
[1755487211506,0.67,184.21,184.19,15.45491634]
[1755487211860,0.67,184.2,184.18,15.45491634]
[1755487214208,0.67,184.19,184.17,15.45491634]
[1755487214506,20.09941774,184.19,184.13,15.45491634]
[1755487214683,59.60276223,184.18,184.12,0.03]
[1755487214881,5.43006081,184.16,184.12,0.03]
[1755487215099,9.00771343,184.16,184.12,0.03]
[1755487215300,0.67,184.15,184.12,0.03]
[1755487215609,55.35491634,184.18,184.12,0.03]
[1755487215610,39.9,184.18,184.14,15.45491634]
[1755487215912,39.9,184.18,184.17,15.45491634]
[1755487216110,40.61,184.18,184.17,15.45491634]
[1755487217083,46.03947376,184.18,184.15,15.45491634]
[1755487217315,26.0,184.13,184.1,0.03]
[1755487217488,15.45491634,184.11,184.1,0.03]
[1755487217800,7.5568295,184.11,184.1,0.03]
[1755487218004,3.58030578,184.11,184.1,0.03]
[1755487218306,8.26864204,184.11,184.1,0.03]
[1755487218503,4.29030578,184.11,184.1,0.03]
[1755487218716,40.38,184.12,184.1,15.48491634]
[1755487218903,40.38,184.12,184.1,0.03]
[1755487219208,15.45491634,184.17,184.11,16.17491634]
[1755487219209,40.38,184.15,184.11,16.17491634]
[1755487219511,4.29686349,184.14,184.1,0.03]
[1755487219984,0.71,184.13,184.1,0.03]
[1755487220380,0.71,184.12,184.1,0.03]
[1755487220606,40.44,184.11,184.1,0.03]
[1755487220808,44.73686349,184.11,184.1,0.03]
[1755487221398,44.02686349,184.11,184.1,0.03]
[1755487221712,44.73686349,184.11,184.1,0.03]
[1755487221907,50.16839898,184.11,184.1,0.03]
[1755487222104,44.73686349,184.11,184.1,0.03]
[1755487223017,50.16839898,184.11,184.1,0.03]
[1755487223187,44.73686349,184.11,184.1,0.03]
[1755487223584,50.16839898,184.11,184.1,0.03]
[1755487224695,44.73686349,184.11,184.1,0.03]
[1755487225092,5.43183052,184.1,184.08,0.03]
[1755487225314,52.45613359,184.09,184.08,0.03]
[1755487225492,44.65686349,184.09,184.08,0.03]
[1755487225691,48.6621432,184.09,184.08,0.03]
[1755487226234,48.66532337,184.09,184.08,0.03]
[1755487227141,48.66532337,184.09,184.02,0.75]
[1755487227142,26.0,184.06,184.02,0.03]
[1755487227291,15.45491634,184.04,184.02,0.03]
[1755487227493,7.59746753,184.03,184.02,0.03]
[1755487227712,8.30746753,184.03,184.02,0.03]
[1755487227907,7.59746753,184.03,184.02,0.03]
[1755487228395,3.58686349,184.03,184.02,0.03]
[1755487228611,44.04686349,184.03,184.02,15.48491634]
[1755487229130,44.04686349,184.03,184.02,0.03]
[1755487229297,44.04686349,184.03,184.02,15.48491634]
[1755487229719,40.46,184.03,184.02,15.48491634]
[1755487229903,44.07122047,184.03,184.02,15.48491634]
[1755487230406,40.44,184.07,184.03,15.10621557]
[1755487230601,5.22233557,184.1,184.04,0.72]
[1755487230903,44.05246915,184.09,184.05,15.10621557]
[1755487231104,8.33637283,184.08,184.02,15.13621557]
[1755487231306,7.62713874,184.07,184.02,15.13621557]
[1755487231504,3.61246915,184.06,184.02,15.13621557]
[1755487231709,3.61246915,184.05,184.03,0.72]
[1755487231917,3.61246915,184.07,184.04,15.45491634]
[1755487232108,40.44,184.09,184.06,15.45491634]
[1755487232419,8.33860854,184.08,184.02,15.13621557]
[1755487232725,3.61334925,184.07,184.05,15.45491634]
[1755487232922,3.61334925,184.06,184.05,15.45491634]
[1755487233105,3.61334925,184.07,184.06,15.10621557]
[1755487233424,3.61343386,184.11,184.06,31.28113191]
[1755487233622,26.0,184.11,184.02,0.75]
[1755487233924,48.75707949,184.1,184.04,15.45491634]
[1755487234112,8.33707949,184.09,184.02,26.03]
[1755487234300,4.32343386,184.08,184.02,0.03]
[1755487234626,49.54614967,184.07,184.04,15.45491634]
[1755487234796,3.61343386,184.06,184.04,15.45491634]
[1755487236127,3.61121461,184.06,184.04,15.45491634]
[1755487236300,46.64271581,184.07,184.04,15.45491634]
[1755487237120,3.61112491,184.06,184.04,15.45491634]
[1755487237427,46.64271581,184.07,184.04,15.45491634]
[1755487237721,41.21,184.07,184.05,15.45491634]
[1755487238701,41.21,184.07,184.02,0.03]
[1755487239029,41.21,184.07,184.04,15.45491634]
[1755487239403,46.64272773,184.07,184.04,15.45491634]
[1755487239602,46.64272773,184.07,184.02,0.03]
[1755487239907,0.71,184.06,184.04,15.45491634]
[1755487241631,45.93272773,184.07,184.04,15.45491634]
[1755487241925,46.64272773,184.07,184.04,15.45491634]
[1755487242136,40.56,184.07,184.06,15.45491634]
[1755487242632,40.56,184.07,184.05,15.45491634]
[1755487243238,0.06,184.07,184.05,15.45491634]
[1755487243403,0.06,184.07,184.06,15.45491634]
[1755487244316,0.06,184.07,184.05,15.10621557]
[1755487244512,0.71,184.06,184.02,15.48491634]
[1755487244729,0.71,184.06,184.03,15.45491634]
[1755487244938,0.71,184.06,184.04,15.45491634]
[1755487245815,6.14305195,184.06,184.04,15.45491634]
[1755487246019,6.14305195,184.06,184.02,0.03]
[1755487246230,6.14305195,184.06,184.04,15.45491634]
[1755487246433,0.66,184.05,184.02,15.48491634]
[1755487246928,0.66,184.04,184.02,15.48491634]
[1755487248041,5.43356757,184.05,184.02,15.48491634]
[1755487248226,6.09356757,184.05,184.03,15.45491634]
[1755487248627,6.09356757,184.05,184.02,15.48491634]
[1755487248835,0.66,184.04,184.02,0.03]
[1755487249346,40.22,184.04,184.03,15.45491634]
[1755487249728,5.43308308,184.06,184.03,15.45491634]
[1755487250028,40.22,184.05,184.03,0.68]
[1755487250334,40.22,184.05,184.04,0.68]
[1755487250846,0.06,184.07,184.04,0.68]
[1755487251034,0.06,184.07,184.06,15.45491634]
[1755487251353,0.06,184.07,184.05,0.68]
[1755487251528,0.06,184.07,184.06,15.45491634]
[1755487252642,0.06,184.07,184.03,20.54000665]
[1755487252942,0.06,184.07,184.06,15.45491634]
[1755487253526,0.06,184.07,184.06,31.24113191]
[1755487254746,0.06,184.07,184.06,36.67414288]
[1755487255858,0.06,184.07,184.06,31.24113191]
[1755487256531,0.06,184.07,184.06,25.32413252]
[1755487257840,0.06,184.07,184.06,15.78621557]
[1755487258026,0.06,184.07,184.06,25.32413252]
[1755487259241,0.06,184.07,184.06,24.64413252]
[1755487261385,0.06,184.07,184.06,25.32413252]
[1755487261557,0.06,184.09,184.08,41.10621557]
[1755487261872,0.06,184.11,184.09,15.10621557]
[1755487262034,0.06,184.11,184.1,9.53791695]
[1755487262233,0.06,184.11,184.1,10.21791695]
[1755487262630,0.06,184.11,184.1,9.53791695]
[1755487262858,0.06,184.11,184.1,14.96974747]
[1755487263049,0.06,184.11,184.1,15.64974747]
[1755487263355,0.06,184.13,184.12,41.10621557]
[1755487263560,3.62875296,184.17,184.12,50.64413252]
[1755487263762,0.72,184.2,184.16,24.64413252]
[1755487263947,3.62664401,184.19,184.16,15.10621557]
[1755487264142,3.62664401,184.18,184.16,15.10621557]
[1755487264551,3.62664401,184.17,184.16,15.10621557]
[1755487264740,3.62664401,184.19,184.17,15.10621557]
[1755487264941,3.62664401,184.19,184.15,15.10621557]
[1755487265160,3.62664401,184.19,184.18,9.53791695]
[1755487266178,3.68664401,184.2,184.18,9.53791695]
[1755487266359,0.06,184.2,184.19,9.53791695]
[1755487266562,3.68664401,184.2,184.19,9.53791695]
[1755487266874,0.06,184.2,184.19,9.53791695]
[1755487267079,0.06,184.2,184.16,6.10995017]
[1755487267253,0.06,184.2,184.19,9.53791695]
[1755487267450,0.72,184.2,184.19,9.53791695]
[1755487267860,44.24664401,184.2,184.15,9.53791695]
[1755487268049,4.28664401,184.19,184.18,9.53791695]
[1755487268258,3.62664401,184.19,184.18,9.53791695]
[1755487268972,0.06,184.2,184.18,9.53791695]
[1755487269179,0.06,184.2,184.19,9.53791695]
[1755487270548,0.06,184.2,184.19,25.32413252]
[1755487271301,0.06,184.22,184.21,26.0]
[1755487271448,0.06,184.22,184.21,35.53791695]
[1755487271653,0.06,184.22,184.21,36.21791695]
[1755487272249,0.06,184.22,184.21,35.53791695]
[1755487272782,0.72,184.22,184.2,9.53791695]
[1755487273476,0.72,184.22,184.21,9.53791695]
[1755487273869,0.06,184.22,184.21,9.53791695]
[1755487275461,0.72,184.22,184.21,9.53791695]
[1755487275683,0.06,184.22,184.21,9.53791695]
[1755487276491,0.06,184.22,184.21,30.74271945]
[1755487277560,0.06,184.22,184.21,24.64413252]
[1755487278289,0.73,184.22,184.21,9.53791695]
[1755487278662,0.06,184.22,184.21,9.53791695]
[1755487278874,0.06,184.22,184.21,30.74271945]
[1755487279796,0.06,184.22,184.21,30.07271945]
[1755487280368,0.06,184.22,184.21,30.74271945]
[1755487280663,0.06,184.22,184.21,30.07271945]
[1755487281475,0.06,184.22,184.21,24.64413252]
[1755487281855,0.73,184.22,184.21,24.64413252]
[1755487282066,0.73,184.22,184.21,9.53791695]
[1755487283081,0.73,184.22,184.2,9.53791695]
[1755487283382,0.67,184.21,184.2,9.53791695]
[1755487285372,0.06,184.22,184.2,9.53791695]
[1755487285573,0.06,184.22,184.21,9.53791695]
[1755487285783,0.73,184.22,184.21,9.53791695]
[1755487286098,0.73,184.22,184.18,20.53563534]
[1755487286407,0.73,184.22,184.21,9.53791695]
[1755487290372,0.06,184.22,184.21,9.53791695]
[1755487291096,0.73,184.22,184.21,9.53791695]
[1755487293191,0.73,184.22,184.18,15.10621557]
[1755487293398,0.73,184.22,184.21,9.53791695]
[1755487296004,0.06,184.22,184.21,9.53791695]
[1755487297204,0.06,184.22,184.18,21.20567645]
[1755487297510,0.06,184.22,184.21,9.53791695]
[1755487298785,0.06,184.22,184.21,30.74271945]
[1755487299299,0.06,184.22,184.21,110.14271945]
[1755487299706,0.06,184.24,184.23,24.64413252]
[1755487299998,0.06,184.24,184.23,104.04413252]
[1755487300202,0.06,184.24,184.23,104.71413252]
[1755487301403,0.06,184.24,184.23,149.78213013]
[1755487302195,0.06,184.24,184.23,88.93791695]
[1755487302414,0.73,184.24,184.23,88.93791695]
[1755487302725,4.32835303,184.24,184.23,88.93791695]
[1755487302921,0.73,184.24,184.16,6.13004607]
[1755487303129,3.59835303,184.23,184.16,15.80621557]
[1755487303334,4.26835303,184.22,184.19,9.53791695]
[1755487303500,3.59835303,184.21,184.19,9.53791695]
[1755487303701,0.67,184.2,184.19,9.53791695]
[1755487304023,3.59835303,184.21,184.19,9.53791695]
[1755487304198,3.59835303,184.2,184.17,5.42969502]
[1755487304396,3.59835303,184.21,184.19,9.53791695]
[1755487304626,3.61839082,184.23,184.21,15.10621557]
[1755487304928,3.61882263,184.23,184.22,24.64413252]
[1755487305125,3.61882263,184.23,184.22,15.10621557]
[1755487305346,0.06,184.24,184.23,15.10621557]
[1755487305640,0.06,184.24,184.23,30.74213013]
[1755487306997,0.06,184.24,184.23,24.64413252]
[1755487307197,0.06,184.24,184.23,30.07213013]
[1755487308293,0.06,184.24,184.23,30.74213013]
[1755487308922,0.06,184.24,184.23,30.07213013]
[1755487309225,0.06,184.24,184.23,24.64413252]
[1755487309412,0.06,184.24,184.23,30.07213013]
[1755487310318,4.39143364,184.24,184.23,9.53791695]